bitfinex/quotes_ETHUSD_20220119
["timestamp","ask_amount","ask_price","bid_price","bid_amount"]
[1642589770502,0.81539,3066.8,3066.2,0.07779917]
[1642589770703,0.81539,3066.8,3066.3,0.00568423]
[1642589770903,0.81539,3066.8,3066.7,2.23106076]
[1642589771105,0.81539,3066.8,3066.7,2.13306076]
[1642589771308,0.81539,3066.8,3066.7,2.1364713]
[1642589772104,1.7933995,3067.0,3066.7,2.1364713]
[1642589772306,0.1303,3066.9,3066.7,2.1364713]
[1642589772506,0.1303,3066.9,3066.8,0.00284211]
[1642589773553,0.1303,3067.4,3066.8,2.9997502]
[1642589773750,0.22313685,3067.5,3066.9,0.1303]
[1642589773954,0.22313685,3067.5,3066.9,0.00227369]
[1642589774149,0.22313685,3067.5,3067.0,0.00170527]
[1642589774349,0.22313685,3067.5,3066.9,0.00227369]
[1642589774550,0.22313685,3067.5,3067.0,1.35578986]
[1642589774951,1.03829685,3067.5,3067.2,2.27145114]
[1642589776154,1.85347745,3067.5,3067.2,2.27145114]
[1642589777608,1.03829685,3067.5,3067.2,2.27145114]
[1642589779010,0.1303,3067.8,3067.3,6.95]
[1642589779215,0.1303,3068.1,3067.4,0.12892345]
[1642589779413,0.00113685,3067.7,3067.5,0.81493]
[1642589779609,0.00113685,3067.7,3067.6,7.0803]
[1642589779810,2.77397402,3068.6,3067.6,7.0803]
[1642589780011,2.77397402,3068.6,3067.8,2.44425]
[1642589780211,0.00568423,3068.5,3067.9,0.1303]
[1642589780457,0.00568423,3068.5,3068.0,0.47]
[1642589780654,3.7365,3069.1,3068.1,0.1303]
[1642589780655,0.00511581,3068.4,3068.1,0.1303]
[1642589780850,0.00511581,3068.4,3068.2,0.47]
[1642589781052,3.7365,3069.1,3068.3,7.0303]
[1642589781252,3.7365,3069.1,3068.4,0.81464]
[1642589781253,2.77353888,3069.0,3068.4,0.81464]
[1642589781454,2.78206523,3069.0,3068.5,2.25323932]
[1642589781758,2.77353888,3068.9,3068.5,2.25323932]
[1642589782154,0.0073895,3068.8,3068.5,2.25323932]
[1642589782555,0.00682108,3068.7,3068.5,2.25323932]
[1642589782756,0.00682108,3068.7,3068.6,1.34712807]
[1642589782955,0.8148152,3068.9,3068.6,1.34712807]
[1642589783155,2.77364882,3068.8,3068.6,1.34712807]
[1642589783356,2.78103832,3068.8,3068.6,1.34712807]
[1642589783557,0.0073895,3068.8,3068.6,1.34712807]
[1642589783757,0.8222095,3068.8,3068.6,1.34712807]
[1642589783956,0.0073895,3068.8,3068.6,1.34712807]
[1642589785205,2.77371351,3068.7,3068.6,1.34712807]
[1642589786107,2.77371351,3068.7,3067.9,1.2395]
[1642589786309,2.77371351,3068.7,3067.7,0.1303]
[1642589786310,1.6299132,3068.6,3067.7,0.1303]
[1642589786508,2.77371351,3068.5,3067.7,0.1303]
[1642589786708,2.77939774,3068.5,3067.7,1.1303]
[1642589786916,2.77882932,3068.4,3067.7,0.1303]
[1642589787110,0.00511581,3068.4,3067.7,0.1303]
[1642589787310,0.00454739,3068.3,3067.8,3.60306694]
[1642589787511,0.00454739,3068.3,3067.9,0.81483]
[1642589787710,0.00397896,3068.2,3067.9,3.92053405]
[1642589787959,0.00397896,3068.2,3067.9,0.81483]
[1642589788157,0.00341054,3068.1,3067.8,3.60306694]
[1642589788557,0.00284212,3068.0,3067.8,3.60306694]
[1642589788957,0.00227369,3067.9,3067.8,3.60306694]
[1642589789157,0.00227369,3067.9,3067.8,4.60306694]
[1642589789757,0.00227369,3067.9,3067.8,10.55306694]
[1642589792703,0.00227369,3067.9,3067.8,15.15575672]
[1642589792904,7.369e-05,3067.9,3067.8,11.55268978]
[1642589793105,2.77355497,3069.2,3067.9,6.9]
[1642589793308,0.1303,3069.7,3068.3,0.08508727]
[1642589793504,0.00738951,3069.2,3068.5,0.04370361]
[1642589793704,0.00738951,3069.2,3068.6,0.6003]
[1642589793903,0.00682109,3069.1,3068.7,0.47]
[1642589794105,0.00682109,3069.1,3068.8,4.54652687]
[1642589794303,0.00625266,3069.0,3068.9,7.37]
[1642589794503,0.00625266,3069.0,3068.9,8.37]
[1642589795444,0.00625266,3069.0,3068.9,11.40908511]
[1642589796848,0.00625266,3069.0,3068.9,10.93908511]
[1642589797456,0.00625266,3069.0,3068.9,11.40908511]
[1642589801223,0.00625266,3069.0,3068.9,11.70908511]
[1642589801528,0.00625266,3069.0,3068.9,11.83388511]
[1642589801721,0.00625266,3069.0,3068.9,11.84588511]
[1642589801924,0.00625266,3069.0,3068.9,11.84508511]
[1642589802122,0.00625266,3069.0,3068.9,11.84668511]
[1642589802521,5.266e-05,3069.0,3068.9,11.84908511]
[1642589802732,2.77282654,3070.2,3069.3,0.81427]
[1642589802973,2.77282654,3070.2,3069.5,0.81428]
[1642589803165,2.77282654,3070.1,3069.6,1.44469403]
[1642589803567,0.1303,3070.5,3069.7,6.9]
[1642589803771,0.1303,3070.5,3069.8,5.35030378]
[1642589803967,0.00227369,3070.4,3070.0,0.81416]
[1642589804166,0.00227369,3070.4,3070.0,2.62834]
[1642589804366,0.00170527,3070.3,3070.0,2.62834]
[1642589804567,0.00170527,3070.3,3070.0,1.81416]
[1642589804868,0.00113684,3070.2,3070.0,1.81416]
[1642589805871,0.00113684,3070.2,3070.0,1.0]
[1642589806468,0.00113684,3070.2,3069.9,1.5]
[1642589806469,0.00113684,3070.2,3069.9,2.5]
[1642589806703,0.00113684,3070.2,3069.9,2.97]
[1642589806901,0.00113684,3070.2,3069.9,3.27]
[1642589807102,0.00113684,3070.2,3069.9,6.28117374]
[1642589807503,0.00113684,3070.2,3069.9,3.27]
[1642589808907,0.00113684,3070.2,3069.9,4.08421]
[1642589809709,0.00113684,3070.2,3069.9,7.00639109]
[1642589809909,0.00113684,3070.2,3069.9,4.08421]
[1642589810755,0.00113684,3070.2,3069.9,4.21441]
[1642589810955,0.00113684,3070.2,3070.0,0.81426]
[1642589812159,0.00113684,3070.2,3069.9,3.4002]
[1642589812360,0.00113684,3070.2,3069.9,3.27]
[1642589812558,0.00113684,3070.2,3069.9,1.97]
[1642589813463,0.8144,3070.1,3069.9,1.5]
[1642589814500,1.6288956,3070.1,3069.9,1.5]
[1642589814704,0.1302,3070.0,3069.9,1.5]
[1642589814901,1.6288956,3070.1,3069.9,1.5]
[1642589817948,0.8144,3070.1,3069.9,1.5]
[1642589819156,1.6288526,3070.1,3069.9,1.5]
[1642589820259,6.06251701,3070.0,3069.9,1.5]
[1642589820464,2.40103878,3069.7,3069.2,1.2455]
[1642589820661,2.40103878,3069.7,3068.7,4.5283]
[1642589820662,0.76474,3069.4,3068.7,4.5283]
[1642589820862,0.76474,3069.4,3069.3,0.00284212]
[1642589823613,3.53794014,3069.4,3069.3,0.00284212]
[1642589826451,3.53794014,3069.4,3069.3,2.75284212]
[1642589826653,2.77320014,3069.4,3069.3,2.75284212]
[1642589826853,2.77320014,3069.6,3069.3,2.75284212]
[1642589827253,2.77320014,3069.6,3069.4,0.00227369]
[1642589827456,2.77320014,3069.6,3069.5,8.56290813]
[1642589827660,2.77320014,3069.6,3069.5,12.53541261]
[1642589827856,2.77320014,3069.6,3069.5,13.00711788]
[1642589828258,2.77270883,3069.6,3069.5,13.00711788]
[1642589828856,2.77270883,3069.6,3069.5,10.0346134]
[1642589829712,2.77270883,3069.6,3069.5,10.8489934]
[1642589832957,2.40103878,3069.7,3069.5,13.91764407]
[1642589833159,2.40103878,3069.7,3069.6,11.01007724]
[1642589833359,2.40103878,3069.7,3069.6,13.10966409]
[1642589833558,0.00113684,3070.0,3069.7,6.95]
[1642589833761,0.00113684,3070.0,3069.8,4.43143762]
[1642589833960,0.00113684,3070.0,3069.9,8.56063745]
[1642589834161,0.00113684,3070.0,3069.9,12.95255379]
[1642589834365,0.00113684,3070.0,3069.9,11.65891745]
[1642589834562,0.00113684,3070.0,3069.9,11.78291745]
[1642589834762,0.00113684,3070.0,3069.9,12.59071745]
[1642589834962,0.00113684,3070.0,3069.9,12.71791745]
[1642589835164,0.00113684,3070.0,3069.9,12.71471745]
[1642589835365,0.00113684,3070.0,3069.9,12.59071745]
[1642589836362,0.00113684,3070.0,3069.9,12.46051745]
[1642589836803,0.00113684,3070.0,3069.9,12.76051745]
[1642589837004,3.684e-05,3070.0,3069.9,12.88451745]
[1642589837208,2.7723337,3070.6,3070.0,6.9]
[1642589837408,2.7723337,3070.5,3070.1,6.22628213]
[1642589837604,2.7723337,3070.4,3070.2,1.62804]
[1642589837804,0.00341055,3070.6,3070.3,12.92995761]
[1642589838004,0.1302,3070.8,3070.4,2.43805473]
[1642589838204,0.1302,3070.8,3070.5,3.7484224]
[1642589838403,0.1302,3070.8,3070.6,7.76403]
[1642589838404,0.00397897,3070.7,3070.6,7.76403]
[1642589838605,0.00397897,3070.7,3070.6,12.27538233]
[1642589839005,0.00397897,3070.7,3070.6,9.23403]
[1642589839213,0.00397897,3070.7,3070.6,8.23403]
[1642589839607,0.00397897,3070.7,3070.6,9.23403]
[1642589841351,0.00397897,3070.7,3070.6,9.53403]
[1642589841552,0.00397897,3070.7,3070.6,9.23403]
[1642589841757,0.00397897,3070.7,3070.6,9.53403]
[1642589841953,0.00397897,3070.7,3070.6,9.23403]
[1642589842153,0.00397897,3070.7,3070.6,8.53403]
[1642589842354,0.00397897,3070.7,3070.6,9.53403]
[1642589842555,0.00397897,3070.7,3070.6,9.23403]
[1642589843355,0.00397897,3070.7,3070.6,9.53403]
[1642589845004,0.00397897,3070.7,3070.6,8.95203]
[1642589845707,0.00397897,3070.7,3070.6,11.93954386]
[1642589845908,0.00397897,3070.7,3070.6,12.06274386]
[1642589846107,0.00397897,3070.7,3070.6,12.36754386]
[1642589846311,0.00397897,3070.7,3070.6,12.23954386]
[1642589846508,0.00397897,3070.7,3070.6,12.66280386]
[1642589846707,0.00397897,3070.7,3070.6,12.66600386]
[1642589847108,0.00397897,3070.7,3070.6,12.66200386]
[1642589847508,0.00397897,3070.7,3070.6,12.66120386]
[1642589847707,0.00397897,3070.7,3070.6,12.65960386]
[1642589847957,0.00397897,3070.7,3070.6,12.65800386]
[1642589848352,3.8355,3071.6,3070.8,0.8138028]
[1642589848555,3.8355,3071.6,3071.1,1.62764]
[1642589848752,0.00454739,3071.5,3071.2,3.00250097]
[1642589849152,0.00397896,3071.4,3071.2,3.00250097]
[1642589849353,0.00397896,3071.4,3071.3,1.8925583]
[1642589849560,0.1302,3072.1,3071.3,12.11227092]
[1642589849755,3.9592,3072.3,3071.4,1.62755]
[1642589849954,0.00511581,3071.6,3071.5,2.96306555]
[1642589850155,0.00511581,3071.6,3071.5,3.96306555]
[1642589850353,0.00511581,3071.6,3071.5,1.0]
[1642589850556,0.00511581,3071.6,3071.5,1.32884504]
[1642589851154,0.00511581,3071.6,3071.5,3.77884504]
[1642589851557,0.00511581,3071.6,3071.5,1.32884504]
[1642589851813,0.00511581,3071.6,3071.2,3.146]
[1642589852012,0.00511581,3071.6,3071.1,3.9127]
[1642589852013,1.63326581,3071.6,3071.1,3.9127]
[1642589852215,0.00454739,3071.5,3071.0,2.6516]
[1642589852417,0.00454739,3071.5,3071.0,0.47]
[1642589852611,0.00397896,3071.4,3071.0,0.47]
[1642589852813,0.00397896,3071.4,3071.3,3.45829881]
[1642589853012,1.62815,3071.6,3071.3,3.45829881]
[1642589853213,0.8140184,3071.9,3071.3,3.45829881]
[1642589853214,3.58555291,3071.5,3071.3,3.45829881]
[1642589853414,2.77150291,3071.4,3071.3,3.45829881]
[1642589855858,0.00454739,3071.5,3071.3,3.45829881]
[1642589856060,2.77151455,3071.4,3071.3,3.45829881]
[1642589857260,0.00454739,3071.5,3071.3,3.45829881]
[1642589857661,2.7714519,3071.4,3071.3,3.45829881]
[1642589859303,0.00454739,3071.5,3071.3,3.45829881]
[1642589859704,2.77147924,3071.4,3071.3,3.45829881]
[1642589864461,2.77147924,3071.4,3071.3,1.14664024]
[1642589865663,2.77147924,3071.4,3071.3,3.46699448]
[1642589866810,0.00454739,3071.5,3071.3,3.46699448]
[1642589867310,2.77140048,3071.4,3071.3,3.46699448]
[1642589870662,0.00454739,3071.5,3071.3,4.76699448]
[1642589870861,0.00454739,3071.5,3071.3,4.03119448]
[1642589871060,0.00454739,3071.5,3071.4,6.65]
[1642589871265,0.00454739,3071.5,3071.4,9.69028758]
[1642589871462,0.00454739,3071.5,3071.4,6.7802]
[1642589871660,0.00454739,3071.5,3071.4,7.59407]
[1642589873562,0.00454739,3071.5,3071.4,7.46387]
[1642589875311,0.00454739,3071.5,3071.4,10.35502049]
[1642589875514,0.1302,3072.2,3071.7,0.81376]
[1642589875720,2.77096013,3072.1,3071.9,3.16986483]
[1642589875914,3.829,3072.3,3071.9,3.16986483]
[1642589875915,2.77096013,3072.0,3071.9,3.16986483]
[1642589876113,2.77096013,3072.0,3071.9,4.46986483]
[1642589876315,0.00397896,3072.2,3071.9,4.46986483]
[1642589876514,2.77096013,3072.1,3072.0,1.0]
[1642589876717,2.77437067,3072.1,3072.0,4.15]
[1642589877315,2.72437067,3072.1,3072.0,1.0]
[1642589878259,2.72437067,3072.1,3071.9,3.37976483]
[1642589878456,2.72437067,3072.1,3072.0,4.4]
[1642589878658,2.72096013,3072.1,3072.0,4.4]
[1642589879660,2.72096013,3072.1,3071.9,3.37976483]
[1642589880063,0.00284212,3072.0,3071.9,3.37976483]
[1642589880262,0.00284212,3072.0,3071.9,3.16986483]
[1642589880661,0.00284212,3072.0,3071.9,4.16986483]
[1642589880870,0.00284212,3072.0,3071.9,7.43541029]
[1642589881066,4.1058,3072.6,3072.0,6.95]
[1642589881266,3.9756,3072.6,3072.1,0.6]
[1642589881462,0.00113684,3072.2,3072.1,2.0264]
[1642589881714,0.00113684,3072.2,3072.1,12.04574]
[1642589881917,0.00397896,3072.7,3072.1,12.04694]
[1642589882118,0.00397896,3072.7,3072.4,0.81356]
[1642589882316,0.00341054,3072.6,3072.5,3.45894351]
[1642589882618,0.00341054,3072.6,3072.5,4.45894351]
[1642589882818,0.00341054,3072.6,3072.5,7.80894351]
[1642589883220,0.00341054,3072.6,3072.5,10.6976909]
[1642589883424,0.00341054,3072.6,3072.5,11.5112609]
[1642589883819,0.00341054,3072.6,3072.5,11.47048162]
[1642589884620,0.00341054,3072.6,3072.5,8.12048162]
[1642589885763,0.00341054,3072.6,3072.5,5.27251351]
[1642589889404,0.00341054,3072.6,3072.5,8.19512053]
[1642589889612,0.00341054,3072.6,3072.5,5.27251351]
[1642589890611,0.00341054,3072.6,3072.5,5.40251351]
[1642589890811,0.00341054,3072.6,3072.5,5.70251351]
[1642589891816,0.00341054,3072.6,3072.5,4.75894351]
[1642589892217,0.00341054,3072.6,3072.5,5.57252351]
[1642589895361,3.77238325,3073.1,3072.6,4.2]
[1642589895562,3.77238325,3073.1,3072.7,1.81354]
[1642589895768,0.81583369,3073.0,3072.7,1.3]
[1642589895969,0.81583369,3073.0,3072.7,0.3]
[1642589896165,0.00170527,3072.9,3072.6,1.3]
[1642589896565,0.00113684,3072.8,3072.6,1.3]
[1642589897013,0.00170527,3072.9,3072.6,1.3]
[1642589897213,0.00170527,3072.9,3072.7,0.81357]
[1642589897413,0.00113684,3072.8,3072.7,0.81357]
[1642589897920,0.13,3072.7,3072.1,0.47]
[1642589898117,0.13,3072.7,3071.8,3.83685]
[1642589898315,0.13,3072.7,3072.2,0.0022737]
[1642589898918,0.81378,3072.6,3072.2,3.36749125]
[1642589899114,0.13,3072.5,3072.2,3.36749125]
[1642589899314,0.13,3072.5,3072.3,0.00170527]
[1642589900857,0.13,3072.5,3072.2,3.36521755]
[1642589901062,2.77066569,3072.4,3072.2,1.38628003]
[1642589901267,2.77066569,3072.4,3071.6,1.62758]
[1642589901268,2.90066569,3072.3,3071.6,1.62758]
[1642589901471,2.90066569,3072.3,3071.3,1.2124]
[1642589901472,2.77066569,3072.2,3071.3,1.2124]
[1642589901663,2.97207722,3072.1,3071.7,0.00341054]
[1642589901864,2.90086569,3072.0,3071.7,0.00341054]
[1642589902065,5.74705284,3071.9,3071.7,0.00341054]
[1642589902262,5.74705284,3071.9,3071.2,0.2135]
[1642589902263,6.80086569,3071.8,3071.3,1.48252806]
[1642589902462,2.77066569,3071.7,3071.3,1.48252806]
[1642589902663,2.77066569,3071.7,3071.4,0.00511582]
[1642589902664,0.1302,3071.6,3071.4,0.00511582]
[1642589902869,0.81406,3071.8,3071.4,0.00511582]
[1642589903061,2.7710746,3071.7,3071.4,0.00511582]
[1642589903663,0.814,3071.6,3071.4,0.00511582]
[1642589903864,2.7710746,3071.5,3071.4,0.00511582]
[1642589904071,2.7710746,3071.5,3071.4,0.30511582]
[1642589904314,0.1302,3071.7,3071.4,3.3071185]
[1642589904509,2.44215,3072.3,3071.7,0.81385]
[1642589904708,2.44215,3072.3,3071.8,0.1302]
[1642589904709,2.7707422,3072.2,3071.8,0.1302]
[1642589904911,3.5845922,3072.2,3071.8,0.43304212]
[1642589905111,2.7707422,3072.1,3071.9,0.0022737]
[1642589906111,2.7707422,3072.1,3072.0,3.00045487]
[1642589906514,2.7707422,3072.1,3072.0,4.30216014]
[1642589906723,2.7707422,3072.1,3072.0,3.30216014]
[1642589906915,2.7707422,3072.1,3072.0,4.30216014]
[1642589907316,2.7707422,3072.1,3072.0,0.00170527]
[1642589907317,5.81603076,3072.1,3072.0,0.00170527]
[1642589907516,2.9009422,3072.1,3072.0,0.00170527]
[1642589907716,0.81404,3071.9,3071.2,0.00625266]
[1642589907958,2.7707422,3071.8,3071.3,0.1302]
[1642589908360,1.62808,3072.0,3071.4,0.00511582]
[1642589908361,2.7707422,3071.9,3071.4,0.00511582]
[1642589908557,2.7707422,3071.8,3071.4,3.00857347]
[1642589908756,1.62801,3071.6,3071.4,3.00857347]
[1642589908960,1.62801,3071.6,3071.5,0.00454739]
[1642589909565,4.73569278,3071.6,3071.5,0.00454739]
[1642589909763,4.73569278,3071.6,3071.4,0.00511582]
[1642589910364,2.4421974,3071.6,3071.4,0.00511582]
[1642589910565,7.40474241,3071.5,3071.4,0.00511582]
[1642589910764,7.40474241,3071.5,3070.2,0.1302]
[1642589910964,0.81435,3071.3,3070.1,0.1302]
[1642589911163,3.87784868,3071.2,3070.3,0.00625265]
[1642589911363,4.04063868,3071.2,3070.3,0.00625265]
[1642589911564,4.04063868,3071.2,3070.2,1.46187046]
[1642589911565,1.24892018,3070.9,3070.2,1.46187046]
[1642589911816,0.94458,3070.8,3070.2,1.46187046]
[1642589912022,0.1302,3070.8,3070.2,1.46187046]
[1642589912217,0.1302,3071.4,3070.2,1.46187046]
[1642589912417,0.1302,3071.4,3070.3,1.2884]
[1642589912618,0.1302,3071.4,3070.3,2.2884]
[1642589912817,0.1302,3071.6,3071.4,1.32024955]
[1642589913016,0.1302,3071.6,3071.5,1.9375495]
[1642589913218,0.13133684,3071.6,3071.5,1.9375495]
[1642589913424,2.68133684,3071.6,3071.5,1.9375495]
[1642589914522,0.13133684,3071.6,3071.5,1.9375495]
[1642589914719,0.00113684,3071.6,3071.5,1.9375495]
[1642589915320,0.00113684,3071.6,3071.4,1.32024955]
[1642589915594,0.1302,3071.5,3071.4,1.32024955]
[1642589915781,1.62940684,3071.6,3071.4,1.32024955]
[1642589916584,2.44353184,3071.6,3071.4,1.32024955]
[1642589917589,1.62940684,3071.6,3071.4,1.32024955]
[1642589923866,2.77112242,3071.5,3071.4,1.62024955]
[1642589924467,1.62940684,3071.6,3071.4,1.62024955]
[1642589924971,2.77113347,3071.5,3071.4,1.62024955]
[1642589925169,0.00113684,3071.6,3071.4,1.62024955]
[1642589925372,0.00113684,3071.6,3071.5,7.0802]
[1642589925572,0.00113684,3071.6,3071.5,8.5122]
[1642589925868,0.00113684,3071.6,3071.5,9.5122]
[1642589926269,0.00113684,3071.6,3071.5,11.13969]
[1642589927518,0.00113684,3071.6,3071.5,2.5622]
[1642589927720,0.00113684,3071.6,3071.5,0.1302]
[1642589928313,2.77179586,3071.6,3071.5,0.1302]
[1642589928513,0.00113684,3071.6,3071.4,1.62024955]
[1642589930119,2.77213005,3071.6,3071.4,1.62024955]
[1642589930760,2.77099321,3071.5,3071.4,1.62024955]
[1642589930959,0.00113684,3071.6,3071.4,1.62024955]
[1642589931161,0.00113684,3071.6,3071.4,3.52101754]
[1642589932169,0.00113684,3071.6,3071.5,8.0802]
[1642589932567,0.00113684,3071.6,3071.5,8.24286]
[1642589932771,0.00113684,3071.6,3071.5,9.57326]
[1642589932965,0.00113684,3071.6,3071.5,10.04246]
[1642589933170,0.00113684,3071.6,3071.5,10.03846]
[1642589933371,0.00113684,3071.6,3071.5,10.04326]
[1642589933573,0.00113684,3071.6,3071.5,10.8602044]
[1642589933774,2.77050187,3072.6,3071.6,6.95]
[1642589934069,2.77050187,3072.6,3071.8,0.81365]
[1642589934070,0.00511582,3072.5,3071.8,0.81365]
[1642589934333,2.77050187,3072.4,3071.8,1.11365]
[1642589934523,2.77504927,3072.4,3071.8,1.11365]
[1642589934723,2.77448085,3072.3,3071.8,1.11365]
[1642589934926,2.77050187,3072.2,3071.9,2.0972929]
[1642589935125,2.77391242,3072.2,3071.9,3.9109529]
[1642589935333,0.00284213,3072.1,3072.0,3.04636397]
[1642589935529,0.00284213,3072.1,3072.0,4.81636397]
[1642589936251,0.00284213,3072.1,3072.0,5.63003397]
[1642589938859,2.77048191,3072.7,3072.1,8.5772077]
[1642589939060,2.76764033,3072.7,3072.2,2.34074342]
[1642589939261,0.00284212,3072.6,3072.2,2.64074342]
[1642589939462,0.00284212,3072.6,3072.2,2.5836]
[1642589939664,0.00227369,3072.5,3072.2,2.8836]
[1642589939861,0.00227369,3072.5,3072.3,0.13]
[1642589940065,2.76764033,3072.7,3072.4,6.48358]
[1642589940267,2.76764033,3072.7,3072.5,1.0]
[1642589940471,0.00284212,3072.6,3072.5,1.43]
[1642589940767,0.00284212,3072.6,3072.5,2.49370033]
[1642589941466,0.00284212,3072.6,3072.5,4.12085033]
[1642589942120,0.00284212,3072.6,3072.5,7.82085033]
[1642589945765,0.00284212,3072.6,3072.5,4.12085033]
[1642589945965,0.00284212,3072.6,3072.5,1.49370033]
[1642589946363,0.00284212,3072.6,3072.5,2.49370033]
[1642589946564,0.00284212,3072.6,3072.5,1.19370033]
[1642589948169,0.00284212,3072.6,3072.5,1.49370033]
[1642589949208,0.00284212,3072.6,3072.5,1.48024234]
[1642589950013,0.00284212,3072.6,3072.5,1.19370033]
[1642589951715,0.00284212,3072.6,3072.5,1.49370033]
[1642589952019,3.11931625,3072.6,3072.0,1.81363122]
[1642589952217,0.94667212,3072.6,3072.0,1.81363122]
[1642589952415,0.00227369,3072.5,3072.0,1.81363122]
[1642589952616,1.75779,3072.4,3072.0,1.81363122]
[1642589952820,1.75949527,3072.4,3072.0,1.81363122]
[1642589953093,1.62779,3072.4,3072.3,1.26781828]
[1642589953501,1.62949527,3072.4,3072.3,1.26781828]
[1642589956503,1.62949527,3072.4,3072.0,1.81363122]
[1642589956711,1.62949527,3072.4,3072.1,0.3]
[1642589956915,0.00113685,3072.3,3072.0,2.11363122]
[1642589957117,0.81495685,3072.3,3072.0,2.11363122]
[1642589957718,0.81495685,3072.3,3072.1,1.31891851]
[1642589958221,0.81495685,3072.3,3072.0,2.11363122]
[1642589958417,0.94515685,3072.3,3071.8,0.3]
[1642589958623,0.94515685,3072.3,3071.6,7.6584]
[1642589958624,0.94515685,3072.3,3071.6,0.13]
[1642589958823,0.94515685,3072.3,3071.9,0.00113685]
[1642589958824,0.01261403,3072.0,3071.9,0.00113685]
[1642589959021,7.57842,3071.9,3071.0,1.2105]
[1642589959221,2.90125033,3071.8,3071.7,0.00113684]
[1642589959423,3.95,3071.7,3071.3,1.28978045]
[1642589959722,0.8142098,3071.7,3071.6,1.71345841]
[1642589959921,0.8142,3071.8,3071.6,1.71345841]
[1642589960484,0.8142,3071.8,3071.6,2.01345841]
[1642589960884,4.0359,3072.2,3071.7,0.81379]
[1642589960885,0.81381,3072.0,3071.7,0.81379]
[1642589961289,0.00113684,3071.9,3071.8,0.3]
[1642589961691,0.00113684,3071.9,3071.8,8.79535683]
[1642589961890,0.00113684,3071.9,3071.8,7.54027528]
[1642589962089,0.00113684,3071.9,3071.8,13.41850578]
[1642589962291,0.00113684,3071.9,3071.8,10.53232528]
[1642589962491,0.00113684,3071.9,3071.8,13.52298044]
[1642589962891,0.00113684,3071.9,3071.8,10.53232528]
[1642589963091,0.00113684,3071.9,3071.8,13.80792528]
[1642589965025,0.00113684,3071.9,3071.8,12.99417528]
[1642589965426,0.00113684,3071.9,3071.8,13.80791528]
[1642589966628,0.00113684,3071.9,3071.8,10.53231528]
[1642589966827,0.00113684,3071.9,3071.8,9.35401528]
[1642589969174,0.00113684,3071.9,3071.8,3.09027528]
[1642589969376,0.00113684,3071.9,3071.8,3.90404528]
[1642589969777,0.00113684,3071.9,3071.8,6.25404528]
[1642589970476,0.00113684,3071.9,3071.8,5.44027528]
[1642589971078,4.6284569,3072.9,3071.9,6.95]
[1642589971079,0.1302,3072.9,3071.9,6.95]
[1642589971282,0.13,3073.0,3072.1,0.81371]
[1642589971489,3.6001,3073.1,3072.2,1.25179617]
[1642589971734,3.6001,3073.1,3072.4,0.81353]
[1642589971939,0.00625266,3073.0,3072.5,0.73851854]
[1642589972128,0.00625266,3073.0,3072.6,3.63016467]
[1642589972430,0.00568424,3072.9,3072.7,0.13851854]
[1642589972632,0.00568424,3072.9,3072.8,7.08]
[1642589972829,3.6423,3073.7,3073.0,0.81336]
[1642589973028,3.6423,3073.7,3073.1,0.13]
[1642589973029,1.60102876,3073.7,3073.1,0.13]
[1642589973228,0.0096632,3073.6,3073.1,0.13]
[1642589973428,0.0096632,3073.6,3073.2,1.99097925]
[1642589973630,0.00909478,3073.5,3073.3,2.51528953]
[1642589973829,0.00909478,3073.5,3073.3,3.32865953]
[1642589974033,7.58,3074.0,3073.4,6.75]
[1642589974034,1.60102876,3073.9,3073.4,6.75]
[1642589974229,2.40310343,3074.1,3073.4,6.75]
[1642589974230,1.60102876,3074.1,3073.4,6.75]
[1642589974430,0.01023162,3073.7,3073.4,7.22]
[1642589974632,0.01023162,3073.7,3073.5,7.0748]
[1642589974831,0.0096632,3073.6,3073.5,7.88723]
[1642589975035,0.13,3074.4,3073.6,6.95]
[1642589975036,1.73102876,3074.4,3073.6,6.95]
[1642589975334,0.00341054,3074.2,3073.7,0.6]
[1642589975579,0.00341054,3074.2,3073.8,0.16266]
[1642589975776,0.1,3074.7,3074.0,6.9]
[1642589975977,0.1,3074.7,3074.2,0.81291]
[1642589976175,0.00284212,3074.6,3074.3,3.27683229]
[1642589976377,0.00284212,3074.6,3074.3,3.96911164]
[1642589976581,0.00227369,3074.5,3074.4,0.47]
[1642589976780,0.00227369,3074.5,3074.4,6.3]
[1642589976980,0.00227369,3074.5,3074.4,6.76266]
[1642589977781,0.00227369,3074.5,3074.4,8.90038]
[1642589977978,0.00227369,3074.5,3074.4,8.89878]
[1642589978178,0.00227369,3074.5,3074.4,8.90518]
[1642589978382,0.00227369,3074.5,3074.4,8.90438]
[1642589978581,0.00227369,3074.5,3074.4,8.90518]
[1642589978784,0.00227369,3074.5,3074.4,8.90118]
[1642589978982,0.00227369,3074.5,3074.4,7.70438]
[1642589979244,0.00227369,3074.5,3074.4,7.70118]
[1642589979433,0.00227369,3074.5,3074.4,7.70438]
[1642589979633,0.00227369,3074.5,3074.4,7.70278]
[1642589979832,0.00227369,3074.5,3074.4,7.70438]
[1642589980337,0.1,3074.7,3074.5,6.9]
[1642589980537,2.322712,3074.9,3074.6,6.9]
[1642589980736,2.322712,3074.9,3074.7,1.62562]
[1642589980936,2.322712,3074.9,3074.8,3.36844112]
[1642589981138,0.13,3075.6,3074.9,6.9]
[1642589981341,0.13,3075.8,3075.0,0.47]
[1642589981536,0.13,3075.8,3075.0,1.07]
[1642589981743,0.13738951,3075.8,3075.0,1.07]
[1642589982236,0.13738951,3075.8,3075.7,3.5336695]
[1642589982440,0.13738951,3075.8,3075.4,1.11277]
[1642589982441,0.89490633,3075.6,3075.4,1.11277]
[1642589982639,0.89490633,3075.6,3075.5,0.47]
[1642589982839,0.13,3075.8,3075.6,6.9]
[1642589983074,0.13,3075.8,3075.7,7.56492136]
[1642589983371,3.8876,3076.7,3075.8,8.50728375]
[1642589983577,3.8876,3076.7,3075.9,1.2824456]
[1642589983775,3.8876,3076.7,3076.4,3.96627776]
[1642589983975,0.13,3077.1,3076.4,4.26627776]
[1642589984175,1.54649147,3076.5,3076.4,1.76627776]
[1642589984379,1.54649147,3076.5,3076.4,2.57872776]
[1642589984574,1.54649147,3076.5,3076.4,1.91545]
[1642589984777,1.54649147,3076.5,3076.4,1.103]
[1642589985976,1.54649147,3076.5,3076.4,5.52875846]
[1642589986379,0.5510006,3076.5,3076.4,11.2788639]
[1642589986586,0.13,3077.1,3076.6,0.08296379]
[1642589986829,0.13,3077.8,3076.8,0.85890203]
[1642589987028,0.00284212,3077.0,3076.9,7.67]
[1642589987226,0.00284212,3077.0,3076.9,7.97]